[Event "DLM Youth 2024"]
[Site "Tuebingen"]
[Date "2024.10.03"]
[Round "1"]
[White "Albrecht, Neil"]
[Black "Ensslen, Jakob"]
[Result "1-0"]
[ECO "B76"]
[WhiteElo "1997"]
[BlackElo "1774"]
[Annotator "RC"]
[PlyCount "97"]
[EventDate "2024.10.03"]
[EventType "team-swiss"]
[EventRounds "7"]
[EventCountry "GER"]
[SourceTitle "playchess.com"]
[Source "ChessBase"]
[SourceQuality "1"]
[TimeControl "40/5400+30:1800+30"]

1. e4 {[%emt 0:00:03]} c5 {[%emt 0:00:09]} 2. Nf3 {[%emt 0:00:07]} d6 {[%emt 0:00:11]} 3. d4 {[%emt 0:01:18]} cxd4 {[%emt 0:00:10]} 4. Nxd4 {[%emt 0:00:08]} Nf6 {[%emt 0:00:06]} 5. Nc3 {[%emt 0:00:07]} g6 {[%emt 0:00:15]} 6. Be3 {[%emt 0:00:28]} Bg7 {[%emt 0:00:13]} 7. f3 {[%emt 0:00:34]} O-O {[%emt 0:00:10]} 8. Qd2 {[%emt 0:00:27]} Nc6 {[%emt 0:00:15]} 9. O-O-O {[%emt 0:00:20]} d5 {[%emt 0:00:24]} 10. Nxc6 {[%emt 0:04:10]} bxc6 {[%emt 0:00:13]} 11. Bc4 {[%emt 0:00:25]} Be6 {[%emt 0:08:42]} 12. exd5 {[%emt 0:04:29]} cxd5 {[%emt 0:00:48]} 13. Bb3 {[%emt 0:00:33]} Rc8 {[%emt 0:13:13]} 14. Bxa7 {[%emt 0:04:09]} Qc7 {[%emt 0:07:03]} 15. Bd4 {[%emt 0:00:49]} Rfd8 {[%emt 0:02:15]} 16. g4 {[%emt 0:05:28]} Ra8 {[%emt 0:20:09]} 17. h4 {[%emt 0:03:33]} Bc8 {[%emt 0:06:20]} 18. Bxf6 {[%emt 0:04:43]} exf6 {[%emt 0:01:53]} 19. Nxd5 {[%emt 0:00:30]} Qd7 {[%emt 0:13:04]} 20. Qb4 {[%emt 0:03:49]} Qe8 {[%emt 0:08:47]} 21. Qe7 {[%emt 0:02:38]} Be6 {[%emt 0:03:51]} 22. Qxe8+ {[%emt 0:01:06]} Rxe8 {[%emt 0:00:07]} 23. Nc7 {[%emt 0:01:31]} Bxb3 {[%emt 0:03:30]} 24. Nxe8 {[%emt 0:01:12]} Bh6+ {[%emt 0:03:01]} 25. g5 {[%emt 0:00:08]} fxg5 {[%emt 0:01:44]} 26. axb3 {[%emt 0:00:24]} gxh4+ {[%emt 0:01:43]} 27. Kb1 {[%emt 0:00:06]} Rxe8 {[%emt 0:00:33]} 28. Rxh4 {[%emt 0:00:04]} Bg5 {[%emt 0:00:47]} 29. Rg4 {[%emt 0:01:01]} Bf6 {[%emt 0:00:19]} 30. Rf4 {[%emt 0:00:50]} Kg7 {[%emt 0:00:22]} 31. b4 {[%emt 0:00:20]} h5 {[%emt 0:00:31]} 32. b5 {[%emt 0:00:31]} h4 {[%emt 0:01:38]} 33. b6 {[%emt 0:01:50]} Rb8 {[%emt 0:00:55]} 34. Rb4 {[%emt 0:00:14]} g5 {[%emt 0:01:10]} 35. Rb5 {[%emt 0:00:54]} Kg6 {[%emt 0:01:07]} 36. c4 {[%emt 0:00:34]} Bd8 {[%emt 0:00:56]} 37. c5 {[%emt 0:00:58]} f5 {[%emt 0:00:38]} 38. Kc2 {[%emt 0:08:17]} Kh5 {[%emt 0:01:24]} 39. Rh1 {[%emt 0:02:00]} g4 {[%emt 0:00:45]} 40. fxg4+ {[%emt 0:00:15]} Kxg4 {[%emt 0:00:30]} 41. Rb3 {[%emt 0:33:36]} f4 {[%emt 0:04:36]} 42. Rg1+ {[%emt 0:00:00]} Kf5 {[%emt 0:00:29]} 43. Rg8 {[%emt 0:00:00]} Ke4 {[%emt 0:01:28]} 44. Re8+ {[%emt 0:00:00]} Kf5 {[%emt 0:04:02]} 45. Rd3 {[%emt 0:00:00]} Bc7 {[%emt 0:01:44]} 46. Rxb8 {[%emt 0:00:00]} Bxb8 {[%emt 0:00:12]} 47. c6 {[%emt 0:00:00]} Ke4 {[%emt 0:01:04]} 48. c7 {[%emt 0:00:00]} f3 {[%emt 0:00:08]} 49. c8=Q {[%emt 0:00:00]} 1-0

[Event "DLM Youth 2024"]
[Site "Tuebingen"]
[Date "2024.10.03"]
[Round "1"]
[White "Buchholz, Maja Patricia"]
[Black "Voigt, Anastasia"]
[Result "0-1"]
[ECO "A14"]
[WhiteElo "1988"]
[BlackElo "2037"]
[Annotator "RC"]
[PlyCount "94"]
[EventDate "2024.10.03"]
[EventType "team-swiss"]
[EventRounds "7"]
[EventCountry "GER"]
[SourceTitle "playchess.com"]
[Source "ChessBase"]
[SourceQuality "1"]
[TimeControl "40/5400+30:1800+30"]

1. c4 {[%emt 0:00:03]} Nf6 {[%emt 0:00:05]} 2. g3 {[%emt 0:00:05]} e6 {[%emt 0:00:04]} 3. Bg2 {[%emt 0:00:06]} d5 {[%emt 0:00:07]} 4. Nf3 {[%emt 0:00:09]} Be7 {[%emt 0:00:08]} 5. b3 {[%emt 0:00:28]} O-O {[%emt 0:00:53]} 6. Bb2 {[%emt 0:00:19]} b6 {[%emt 0:01:32]} 7. cxd5 {[%emt 0:00:55]} Nxd5 {[%emt 0:03:21]} 8. O-O {[%emt 0:00:52]} c5 {[%emt 0:01:17]} 9. d4 {[%emt 0:05:11]} cxd4 {[%emt 0:04:33]} 10. Nxd4 {[%emt 0:00:35]} Bb7 {[%emt 0:01:08]} 11. e4 {[%emt 0:05:11]} Nf6 {[%emt 0:06:43]} 12. e5 {[%emt 0:06:01]} Nd5 {[%emt 0:04:04]} 13. Nd2 {[%emt 0:06:53]} Nd7 {[%emt 0:08:26]} 14. Re1 {[%emt 0:02:28]} Nc5 {[%emt 0:02:01]} 15. Ne4 {[%emt 0:09:28]} Rc8 {[%emt 0:07:44]} 16. Nb5 {[%emt 0:17:28]} Nxe4 {[%emt 0:04:59]} 17. Bxe4 {[%emt 0:02:35]} a6 {[%emt 0:07:52]} 18. Nd6 {[%emt 0:07:58]} Bxd6 {[%emt 0:21:11]} 19. exd6 {[%emt 0:00:01]} Rb8 {[%emt 0:00:31]} 20. Bxh7+ {[%emt 0:14:49]} Kxh7 {[%emt 0:03:23]} 21. Qh5+ {[%emt 0:00:08]} Kg8 {[%emt 0:00:05]} 22. Bxg7 {[%emt 0:00:29]} Kxg7 {[%emt 0:00:31]} 23. Qg4+ {[%emt 0:05:41]} Kh7 {[%emt 0:10:45]} 24. Re5 {[%emt 0:05:07]} f5 {[%emt 0:02:39]} 25. Qh5+ {[%emt 0:00:03]} Kg7 {[%emt 0:00:54]} 26. Rxe6 {[%emt 0:00:13]} Rf6 {[%emt 0:05:29]} 27. Rae1 {[%emt 0:00:43]} Qh8 {[%emt 0:01:27]} 28. Qe2 {[%emt 0:07:56]} Qh6 {[%emt 0:01:06]} 29. Qe5 {[%emt 0:01:18]} Rh8 {[%emt 0:00:40]} 30. h4 {[%emt 0:00:19]} Kf7 {[%emt 0:00:32]} 31. Re7+ {[%emt 0:00:46]} Nxe7 {[%emt 0:00:07]} 32. Qxe7+ {[%emt 0:00:05]} Kg6 {[%emt 0:00:09]} 33. d7 {[%emt 0:01:26]} Qf8 {[%emt 0:01:03]} 34. Qe3 {[%emt 0:00:42]} Be4 {[%emt 0:00:28]} 35. f3 {[%emt 0:00:33]} Qc5 {[%emt 0:00:20]} 36. fxe4 {[%emt 0:00:26]} Qxe3+ {[%emt 0:00:51]} 37. Rxe3 {[%emt 0:00:01]} fxe4 {[%emt 0:00:24]} 38. Rxe4 {[%emt 0:00:13]} Rd8 {[%emt 0:00:31]} 39. Kg2 {[%emt 0:01:22]} Rxd7 {[%emt 0:00:06]} 40. Kh3 {[%emt 0:00:18]} Rd2 {[%emt 0:00:37]} 41. a4 {[%emt 0:02:14]} Rff2 {[%emt 0:08:57]} 42. Kg4 {[%emt 0:03:02]} Rd3 {[%emt 0:02:43]} 43. h5+ {[%emt 0:01:16]} Kf7 {[%emt 0:01:20]} 44. Kh3 {[%emt 0:01:38]} Rxb3 {[%emt 0:00:41]} 45. Rg4 {[%emt 0:01:32]} Rbb2 {[%emt 0:03:22]} 46. Kh4 {[%emt 0:00:22]} Rf5 {[%emt 0:02:09]} 47. h6 {[%emt 0:01:51]} Rh2# {[%emt 0:00:05]} 0-1

[Event "DLM Youth 2024"]
[Site "Tuebingen"]
[Date "2024.10.03"]
[Round "1"]
[White "Noennig, Jakob"]
[Black "Mester, Philipp"]
[Result "0-1"]
[ECO "C54"]
[WhiteElo "1986"]
[BlackElo "1996"]
[Annotator "RC"]
[PlyCount "136"]
[EventDate "2024.10.03"]
[EventType "team-swiss"]
[EventRounds "7"]
[EventCountry "GER"]
[SourceTitle "playchess.com"]
[Source "ChessBase"]
[SourceQuality "1"]
[TimeControl "40/5400+30:1800+30"]

1. e4 {[%emt 0:00:02]} e5 {[%emt 0:00:05]} 2. Nf3 {[%emt 0:00:07]} Nc6 {[%emt 0:00:05]} 3. Bc4 {[%emt 0:00:08]} Bc5 {[%emt 0:00:08]} 4. c3 {[%emt 0:00:08]} Nf6 {[%emt 0:00:08]} 5. d4 {[%emt 0:00:07]} exd4 {[%emt 0:00:13]} 6. e5 {[%emt 0:00:06]} d5 {[%emt 0:00:05]} 7. Bb5 {[%emt 0:00:07]} Ne4 {[%emt 0:00:16]} 8. cxd4 {[%emt 0:00:08]} Bb6 {[%emt 0:00:11]} 9. Nc3 {[%emt 0:00:09]} O-O {[%emt 0:00:41]} 10. Be3 {[%emt 0:00:15]} Bg4 {[%emt 0:04:33]} 11. h3 {[%emt 0:00:19]} Bh5 {[%emt 0:00:04]} 12. Qc2 {[%emt 0:00:09]} Bg6 {[%emt 0:00:16]} 13. Qb3 {[%emt 0:00:11]} Ne7 {[%emt 0:00:18]} 14. O-O {[%emt 0:00:14]} c6 {[%emt 0:00:41]} 15. Bd3 {[%emt 0:00:19]} Nxc3 {[%emt 0:03:13]} 16. Qxc3 {[%emt 0:01:07]} Bxd3 {[%emt 0:00:22]} 17. Qxd3 {[%emt 0:00:11]} f6 {[%emt 0:02:09]} 18. exf6 {[%emt 0:06:22]} Rxf6 {[%emt 0:07:46]} 19. Bg5 {[%emt 0:02:13]} Re6 {[%emt 0:01:40]} 20. Rae1 {[%emt 0:03:32]} Qd7 {[%emt 0:03:07]} 21. Ne5 {[%emt 0:13:10]} Qd6 {[%emt 0:11:22]} 22. f4 {[%emt 0:05:56]} Rf8 {[%emt 0:08:29]} 23. g4 {[%emt 0:21:45]} Ng6 {[%emt 0:30:22]} 24. Kh1 {[%emt 0:08:30]} Ree8 {[%emt 0:07:06]} 25. f5 {[%emt 0:07:51]} Nh8 {[%emt 0:01:54]} 26. Bf4 {[%emt 0:12:51]} Qb4 {[%emt 0:01:54]} 27. Nf3 {[%emt 0:01:24]} Nf7 {[%emt 0:03:44]} 28. g5 {[%emt 0:05:55]} Nd6 {[%emt 0:04:14]} 29. Bxd6 {[%emt 0:07:03]} Qxd6 {[%emt 0:00:06]} 30. Ne5 {[%emt 0:00:15]} Qb4 {[%emt 0:06:06]} 31. f6 {[%emt 0:03:38]} Qxd4 {[%emt 0:01:52]} 32. Qf5 {[%emt 0:01:09]} Rxe5 {[%emt 0:02:20]} 33. Rxe5 {[%emt 0:00:35]} Bc5 {[%emt 0:00:48]} 34. g6 {[%emt 0:00:50]} gxf6 {[%emt 0:00:38]} 35. gxh7+ {[%emt 0:00:35]} Kh8 {[%emt 0:00:07]} 36. Re6 {[%emt 0:00:24]} a5 {[%emt 0:00:47]} 37. Qg6 {[%emt 0:00:28]} Qh4 {[%emt 0:00:37]} 38. Kh2 {[%emt 0:00:34]} Bf2 {[%emt 0:00:15]} 39. Qg2 {[%emt 0:00:36]} Bd4 {[%emt 0:00:30]} 40. Re7 {[%emt 0:00:19]} Qh6 {[%emt 0:00:16]} 41. Rxb7 {[%emt 0:15:54]} Re8 {[%emt 0:04:08]} 42. Re7 {[%emt 0:01:08]} Rb8 {[%emt 0:08:38]} 43. b3 {[%emt 0:01:06]} Qf8 {[%emt 0:05:24]} 44. Re6 {[%emt 0:03:56]} Qf7 {[%emt 0:08:01]} 45. Qg4 {[%emt 0:03:30]} c5 {[%emt 0:02:02]} 46. Rc6 {[%emt 0:05:31]} a4 {[%emt 0:02:43]} 47. Rf5 {[%emt 0:01:11]} axb3 {[%emt 0:00:40]} 48. axb3 {[%emt 0:00:09]} Be5+ {[%emt 0:02:09]} 49. Kh1 {[%emt 0:00:58]} c4 {[%emt 0:00:16]} 50. bxc4 {[%emt 0:00:59]} dxc4 {[%emt 0:00:18]} 51. Rf1 {[%emt 0:00:53]} Qd5+ {[%emt 0:00:35]} 52. Qf3 {[%emt 0:00:26]} Qxf3+ {[%emt 0:00:26]} 53. Rxf3 {[%emt 0:00:01]} c3 {[%emt 0:01:21]} 54. Kg1 {[%emt 0:01:13]} Rb2 {[%emt 0:00:41]} 55. Kf1 {[%emt 0:00:51]} c2 {[%emt 0:00:32]} 56. Re3 {[%emt 0:00:19]} Rb1+ {[%emt 0:00:36]} 57. Re1 {[%emt 0:00:09]} Bg3 {[%emt 0:00:24]} 58. Rxc2 {[%emt 0:01:00]} Rxe1+ {[%emt 0:00:15]} 59. Kg2 {[%emt 0:00:06]} Be5 {[%emt 0:00:22]} 60. Rc8+ {[%emt 0:00:55]} Kxh7 {[%emt 0:00:06]} 61. Re8 {[%emt 0:00:16]} Re3 {[%emt 0:00:20]} 62. Re6 {[%emt 0:00:41]} Kg6 {[%emt 0:00:26]} 63. Re8 {[%emt 0:00:16]} Kf5 {[%emt 0:00:43]} 64. Rh8 {[%emt 0:00:28]} Ke4 {[%emt 0:00:35]} 65. h4 {[%emt 0:00:19]} f5 {[%emt 0:00:14]} 66. h5 {[%emt 0:00:17]} Rg3+ {[%emt 0:00:30]} 67. Kf2 {[%emt 0:00:10]} Rf3+ {[%emt 0:00:06]} 68. Kg2 {[%emt 0:00:19]} Bxh8 {[%emt 0:00:26]} 0-1

[Event "DLM Youth 2024"]
[Site "Tuebingen"]
[Date "2024.10.03"]
[Round "1"]
[White "Reuter, Elisa"]
[Black "Fruth, David"]
[Result "1/2-1/2"]
[ECO "B35"]
[WhiteElo "1985"]
[BlackElo "1966"]
[Annotator "RC"]
[PlyCount "80"]
[EventDate "2024.10.03"]
[EventType "team-swiss"]
[EventRounds "7"]
[EventCountry "GER"]
[SourceTitle "playchess.com"]
[Source "ChessBase"]
[SourceQuality "1"]
[TimeControl "40/5400+30:1800+30"]

1. e4 {[%emt 0:00:30]} c5 {[%emt 0:00:03]} 2. Nf3 {[%emt 0:00:00]} Nc6 {[%emt 0:00:07]} 3. d4 {[%emt 0:00:00]} cxd4 {[%emt 0:00:03]} 4. Nxd4 {[%emt 0:00:00]} g6 {[%emt 0:00:10]} 5. Be3 {[%emt 0:00:00]} Nf6 {[%emt 0:00:06]} 6. Nc3 {[%emt 0:00:00]} Bg7 {[%emt 0:00:02]} 7. Bc4 {[%emt 0:00:00]} O-O {[%emt 0:00:16]} 8. Bb3 {[%emt 0:00:02]} Re8 {[%emt 0:01:00]} 9. f3 {[%emt 0:00:43]} e6 {[%emt 0:00:05]} 10. f4 {[%emt 0:00:04]} d6 {[%emt 0:03:44]} 11. Qf3 {[%emt 0:01:50]} a6 {[%emt 0:03:30]} 12. O-O-O {[%emt 0:03:48]} Qa5 {[%emt 0:01:08]} 13. Nxc6 {[%emt 0:10:38]} bxc6 {[%emt 0:00:01]} 14. Rxd6 {[%emt 0:00:26]} Bb7 {[%emt 0:06:56]} 15. e5 {[%emt 0:07:51]} Nd5 {[%emt 0:01:26]} 16. Nxd5 {[%emt 0:00:29]} exd5 {[%emt 0:01:39]} 17. Qf2 {[%emt 0:01:17]} Qc7 {[%emt 0:02:15]} 18. Bc5 {[%emt 0:16:22]} Bc8 {[%emt 0:05:01]} 19. Bb6 {[%emt 0:01:51]} Qb7 {[%emt 0:00:52]} 20. Rd8 {[%emt 0:00:10]} Rxd8 {[%emt 0:02:00]} 21. Bxd8 {[%emt 0:00:06]} a5 {[%emt 0:01:03]} 22. a4 {[%emt 0:01:00]} Bf5 {[%emt 0:01:13]} 23. Bb6 {[%emt 0:05:09]} Bh6 {[%emt 0:10:34]} 24. g3 {[%emt 0:00:59]} d4 {[%emt 0:09:53]} 25. Bc5 {[%emt 0:01:26]} d3 {[%emt 0:01:27]} 26. Rd1 {[%emt 0:05:51]} Rb8 {[%emt 0:01:50]} 27. Qd4 {[%emt 0:00:27]} Bf8 {[%emt 0:05:01]} 28. Bxf8 {[%emt 0:00:48]} Rxf8 {[%emt 0:01:51]} 29. g4 {[%emt 0:20:07]} dxc2 {[%emt 0:10:22]} 30. Bxc2 {[%emt 0:01:23]} Bxc2 {[%emt 0:10:27]} 31. Kxc2 {[%emt 0:00:12]} Rb8 {[%emt 0:01:38]} 32. Qc3 {[%emt 0:11:24]} c5 {[%emt 0:00:37]} 33. Kc1 {[%emt 0:03:21]} Qe4 {[%emt 0:03:49]} 34. Qxa5 {[%emt 0:02:09]} Qxf4+ {[%emt 0:00:39]} 35. Kb1 {[%emt 0:00:52]} Qe4+ {[%emt 0:00:57]} 36. Kc1 {[%emt 0:01:40]} Rb4 {[%emt 0:00:49]} 37. Qd8+ {[%emt 0:01:17]} Kg7 {[%emt 0:00:01]} 38. Qf6+ {[%emt 0:00:10]} Kh6 {[%emt 0:00:05]} 39. Qh4+ {[%emt 0:00:17]} Kg7 {[%emt 0:00:19]} 40. Qf6+ {[%emt 0:01:05]} Kh6 {[%emt 0:00:10]} 1/2-1/2

[Event "DLM Youth 2024"]
[Site "Tuebingen"]
[Date "2024.10.03"]
[Round "1"]
[White "Goldmann, David"]
[Black "Braeutigam, Alexander"]
[Result "1-0"]
[ECO "B51"]
[WhiteElo "1969"]
[BlackElo "2104"]
[Annotator "RC"]
[PlyCount "47"]
[EventDate "2024.10.03"]
[EventType "team-swiss"]
[EventRounds "7"]
[EventCountry "GER"]
[SourceTitle "playchess.com"]
[Source "ChessBase"]
[SourceQuality "1"]
[TimeControl "40/5400+30:1800+30"]

1. e4 {[%emt 0:00:29]} c5 {[%emt 0:00:07]} 2. Nf3 {[%emt 0:00:05]} d6 {[%emt 0:00:06]} 3. Bb5+ {[%emt 0:00:04]} Nd7 {[%emt 0:00:09]} 4. d4 {[%emt 0:00:04]} cxd4 {[%emt 0:00:10]} 5. Qxd4 {[%emt 0:00:03]} a6 {[%emt 0:01:12]} 6. Bxd7+ {[%emt 0:00:26]} Bxd7 {[%emt 0:00:10]} 7. c4 {[%emt 0:02:47]} Nf6 {[%emt 0:04:23]} 8. Nc3 {[%emt 0:05:09]} b5 {[%emt 0:07:36]} 9. cxb5 {[%emt 0:00:00]} Bxb5 {[%emt 0:02:02]} 10. Bg5 {[%emt 0:05:44]} Rc8 {[%emt 0:02:05]} 11. Bxf6 {[%emt 0:03:09]} gxf6 {[%emt 0:00:17]} 12. Nxb5 {[%emt 0:00:02]} axb5 {[%emt 0:00:16]} 13. O-O {[%emt 0:02:29]} Bh6 {[%emt 0:05:49]} 14. Qd3 {[%emt 0:03:00]} Qb6 {[%emt 0:06:20]} 15. Nd4 {[%emt 0:00:23]} Rc4 {[%emt 0:02:20]} 16. Nf5 {[%emt 0:04:09]} Bf4 {[%emt 0:03:18]} 17. b3 {[%emt 0:02:28]} Rc5 {[%emt 0:09:19]} 18. g3 {[%emt 0:02:44]} Be5 {[%emt 0:02:00]} 19. Rac1 {[%emt 0:00:47]} e6 {[%emt 0:01:17]} 20. Ne3 {[%emt 0:03:21]} Ke7 {[%emt 0:04:55]} 21. Rc2 {[%emt 0:04:36]} Rhc8 {[%emt 0:03:36]} 22. Rfc1 {[%emt 0:01:21]} Bb2 {[%emt 0:12:26]} 23. Rd1 {[%emt 0:01:00]} Bc1 {[%emt 0:13:43]} 24. Rdxc1 {[%emt 0:00:42]} 1-0

[Event "DLM Youth 2024"]
[Site "Tuebingen"]
[Date "2024.10.03"]
[Round "1"]
[White "Groeschel, Karoline"]
[Black "Klaska, Philipp Leon"]
[Result "0-1"]
[ECO "B27"]
[WhiteElo "1968"]
[BlackElo "2263"]
[Annotator "RC"]
[PlyCount "56"]
[EventDate "2024.10.03"]
[EventType "team-swiss"]
[EventRounds "7"]
[EventCountry "GER"]
[SourceTitle "playchess.com"]
[Source "ChessBase"]
[SourceQuality "1"]
[TimeControl "40/5400+30:1800+30"]

1. e4 {[%emt 0:00:03]} c5 {[%emt 0:00:25]} 2. Nf3 {[%emt 0:00:07]} g6 {[%emt 0:00:25]} 3. c3 {[%emt 0:00:33]} Bg7 {[%emt 0:00:33]} 4. d4 {[%emt 0:00:35]} cxd4 {[%emt 0:00:23]} 5. cxd4 {[%emt 0:00:05]} d5 {[%emt 0:00:05]} 6. e5 {[%emt 0:00:10]} Nh6 {[%emt 0:00:40]} 7. h3 {[%emt 0:03:37]} O-O {[%emt 0:00:08]} 8. Nc3 {[%emt 0:01:24]} Nc6 {[%emt 0:13:45]} 9. Bb5 {[%emt 0:01:25]} f6 {[%emt 0:20:08]} 10. exf6 {[%emt 0:19:17]} exf6 {[%emt 0:00:13]} 11. O-O {[%emt 0:00:18]} Qd6 {[%emt 0:06:21]} 12. Re1 {[%emt 0:02:57]} Rd8 {[%emt 0:07:17]} 13. Bxc6 {[%emt 0:20:44]} Qxc6 {[%emt 0:14:36]} 14. Bf4 {[%emt 0:00:47]} g5 {[%emt 0:04:24]} 15. Bh2 {[%emt 0:05:48]} Bf5 {[%emt 0:00:19]} 16. Rc1 {[%emt 0:00:44]} Rac8 {[%emt 0:01:41]} 17. Qd2 {[%emt 0:01:15]} Qd7 {[%emt 0:04:31]} 18. Re3 {[%emt 0:04:58]} Bf8 {[%emt 0:07:57]} 19. Rce1 {[%emt 0:00:41]} Bb4 {[%emt 0:02:06]} 20. Qe2 {[%emt 0:04:04]} Bxc3 {[%emt 0:02:07]} 21. bxc3 {[%emt 0:00:26]} Be4 {[%emt 0:00:40]} 22. Nd2 {[%emt 0:22:21]} Nf5 {[%emt 0:01:01]} 23. Rxe4 {[%emt 0:06:02]} dxe4 {[%emt 0:00:10]} 24. Nxe4 {[%emt 0:00:05]} Rf8 {[%emt 0:04:36]} 25. Qh5 {[%emt 0:03:14]} Ng7 {[%emt 0:01:12]} 26. Qh6 {[%emt 0:00:14]} Rce8 {[%emt 0:01:11]} 27. Kf1 {[%emt 0:01:21]} Qb5+ {[%emt 0:00:43]} 28. Kg1 {[%emt 0:00:07]} Rxe4 {[%emt 0:00:21]} 0-1

[Event "DLM Youth 2024"]
[Site "Tuebingen"]
[Date "2024.10.03"]
[Round "1"]
[White "Haug, Mara"]
[Black "Shen, Tingrui"]
[Result "0-1"]
[ECO "B35"]
[WhiteElo "1958"]
[BlackElo "2102"]
[Annotator "RC"]
[PlyCount "102"]
[EventDate "2024.10.03"]
[EventType "team-swiss"]
[EventRounds "7"]
[EventCountry "GER"]
[SourceTitle "playchess.com"]
[Source "ChessBase"]
[SourceQuality "1"]
[TimeControl "40/5400+30:1800+30"]

1. e4 {[%emt 0:00:04]} c5 {[%emt 0:00:13]} 2. Nf3 {[%emt 0:00:07]} Nc6 {[%emt 0:01:00]} 3. d4 {[%emt 0:00:06]} cxd4 {[%emt 0:00:17]} 4. Nxd4 {[%emt 0:00:03]} g6 {[%emt 0:00:18]} 5. Nc3 {[%emt 0:00:12]} Bg7 {[%emt 0:00:09]} 6. Be3 {[%emt 0:00:14]} Nf6 {[%emt 0:00:11]} 7. Bc4 {[%emt 0:00:33]} Qa5 {[%emt 0:00:18]} 8. O-O {[%emt 0:00:08]} O-O {[%emt 0:00:35]} 9. Bb3 {[%emt 0:05:23]} d6 {[%emt 0:00:16]} 10. h3 {[%emt 0:01:28]} Bd7 {[%emt 0:00:31]} 11. Nf3 {[%emt 0:02:24]} Rac8 {[%emt 0:02:46]} 12. Qd2 {[%emt 0:07:48]} Qh5 {[%emt 0:00:38]} 13. Qe2 {[%emt 0:13:35]} a6 {[%emt 0:05:23]} 14. Rfe1 {[%emt 0:02:41]} b5 {[%emt 0:05:12]} 15. a3 {[%emt 0:07:56]} Na5 {[%emt 0:00:33]} 16. Bd2 {[%emt 0:04:19]} Nxb3 {[%emt 0:09:00]} 17. cxb3 {[%emt 0:00:16]} Be6 {[%emt 0:00:50]} 18. Nd4 {[%emt 0:04:47]} Qxe2 {[%emt 0:01:28]} 19. Rxe2 {[%emt 0:00:43]} Nd7 {[%emt 0:00:22]} 20. Nxe6 {[%emt 0:01:15]} fxe6 {[%emt 0:00:16]} 21. Rc1 {[%emt 0:02:26]} Nc5 {[%emt 0:01:01]} 22. b4 {[%emt 0:01:39]} Nb3 {[%emt 0:01:27]} 23. Rd1 {[%emt 0:06:08]} Nxd2 {[%emt 0:02:16]} 24. Rexd2 {[%emt 0:00:19]} Bxc3 {[%emt 0:02:16]} 25. bxc3 {[%emt 0:00:03]} Rxc3 {[%emt 0:00:34]} 26. Rd3 {[%emt 0:01:06]} Rfc8 {[%emt 0:02:53]} 27. Kf1 {[%emt 0:02:31]} Kg7 {[%emt 0:01:16]} 28. Ke2 {[%emt 0:00:45]} Kf6 {[%emt 0:01:20]} 29. Ke3 {[%emt 0:02:44]} R8c4 {[%emt 0:02:55]} 30. Re1 {[%emt 0:15:27]} Rxd3+ {[%emt 0:02:53]} 31. Kxd3 {[%emt 0:00:06]} Ke5 {[%emt 0:00:16]} 32. g3 {[%emt 0:01:16]} Rd4+ {[%emt 0:00:41]} 33. Kc3 {[%emt 0:01:05]} Rxe4 {[%emt 0:00:38]} 34. Rf1 {[%emt 0:01:18]} Re2 {[%emt 0:01:08]} 35. Kb3 {[%emt 0:01:13]} Ke4 {[%emt 0:01:53]} 36. a4 {[%emt 0:00:46]} bxa4+ {[%emt 0:05:55]} 37. Kxa4 {[%emt 0:00:05]} Rc2 {[%emt 0:02:11]} 38. Ka5 {[%emt 0:00:15]} Rc6 {[%emt 0:00:42]} 39. Re1+ {[%emt 0:00:41]} Kf5 {[%emt 0:00:59]} 40. Re3 {[%emt 0:00:30]} d5 {[%emt 0:01:47]} 41. Rf3+ {[%emt 0:31:55]} Ke5 {[%emt 0:30:34]} 42. b5 {[%emt 0:02:43]} axb5 {[%emt 0:00:44]} 43. Kxb5 {[%emt 0:00:02]} Rc2 {[%emt 0:00:44]} 44. Rf7 {[%emt 0:00:22]} Rc7 {[%emt 0:02:05]} 45. Rxh7 {[%emt 0:00:35]} d4 {[%emt 0:00:15]} 46. Rh8 {[%emt 0:00:06]} d3 {[%emt 0:01:16]} 47. Rd8 {[%emt 0:00:08]} Ke4 {[%emt 0:00:10]} 48. Kb4 {[%emt 0:00:11]} Rc6 {[%emt 0:01:22]} 49. h4 {[%emt 0:01:20]} Rc2 {[%emt 0:01:20]} 50. f3+ {[%emt 0:01:18]} Ke3 {[%emt 0:00:22]} 51. Kb3 {[%emt 0:00:16]} Rc1 {[%emt 0:01:06]} 0-1

[Event "DLM Youth 2024"]
[Site "Tuebingen"]
[Date "2024.10.03"]
[Round "1"]
[White "Bundan, Edward"]
[Black "Mukazhanov, Mansur"]
[Result "0-1"]
[ECO "B34"]
[WhiteElo "1952"]
[BlackElo "1894"]
[Annotator "RC"]
[PlyCount "100"]
[EventDate "2024.10.03"]
[EventType "team-swiss"]
[EventRounds "7"]
[EventCountry "GER"]
[SourceTitle "playchess.com"]
[Source "ChessBase"]
[SourceQuality "1"]
[TimeControl "40/5400+30:1800+30"]

1. e4 {[%emt 0:00:03]} c5 {[%emt 0:00:08]} 2. Nf3 {[%emt 0:00:22]} Nc6 {[%emt 0:00:07]} 3. d4 {[%emt 0:02:07]} cxd4 {[%emt 0:00:06]} 4. Nxd4 {[%emt 0:00:05]} g6 {[%emt 0:00:06]} 5. Nc3 {[%emt 0:00:59]} Bg7 {[%emt 0:00:49]} 6. Be3 {[%emt 0:01:03]} Nf6 {[%emt 0:00:11]} 7. Be2 {[%emt 0:00:45]} O-O {[%emt 0:01:45]} 8. Qd2 {[%emt 0:03:48]} d5 {[%emt 0:00:42]} 9. Nxc6 {[%emt 0:12:12]} bxc6 {[%emt 0:00:09]} 10. O-O-O {[%emt 0:03:35]} Rb8 {[%emt 0:11:46]} 11. e5 {[%emt 0:11:29]} Nd7 {[%emt 0:09:21]} 12. f4 {[%emt 0:00:54]} Nb6 {[%emt 0:00:45]} 13. h4 {[%emt 0:01:50]} Qc7 {[%emt 0:03:25]} 14. h5 {[%emt 0:05:05]} Qb7 {[%emt 0:00:13]} 15. b3 {[%emt 0:01:48]} Nc4 {[%emt 0:04:22]} 16. Bxc4 {[%emt 0:00:33]} dxc4 {[%emt 0:00:07]} 17. hxg6 {[%emt 0:00:46]} fxg6 {[%emt 0:00:15]} 18. Na4 {[%emt 0:10:42]} cxb3 {[%emt 0:02:27]} 19. axb3 {[%emt 0:01:02]} Bg4 {[%emt 0:01:41]} 20. Rdf1 {[%emt 0:00:48]} Qa6 {[%emt 0:03:24]} 21. Qc3 {[%emt 0:11:40]} Rfd8 {[%emt 0:03:47]} 22. Nc5 {[%emt 0:03:55]} Qa3+ {[%emt 0:00:16]} 23. Kb1 {[%emt 0:00:49]} Rd5 {[%emt 0:02:34]} 24. Re1 {[%emt 0:08:13]} Bf5 {[%emt 0:00:45]} 25. Qb2 {[%emt 0:03:15]} Qa5 {[%emt 0:01:49]} 26. Na4 {[%emt 0:02:46]} Rdb5 {[%emt 0:01:04]} 27. Qa2 {[%emt 0:02:24]} e6 {[%emt 0:05:21]} 28. Kc1 {[%emt 0:00:36]} c5 {[%emt 0:01:35]} 29. Bd2 {[%emt 0:01:20]} Qc7 {[%emt 0:00:18]} 30. Nc3 {[%emt 0:00:55]} Ra5 {[%emt 0:02:17]} 31. Na4 {[%emt 0:02:09]} Ra6 {[%emt 0:00:08]} 32. c4 {[%emt 0:02:40]} Qc6 {[%emt 0:00:13]} 33. Bc3 {[%emt 0:01:18]} h5 {[%emt 0:01:17]} 34. Re2 {[%emt 0:01:27]} Bh6 {[%emt 0:00:12]} 35. Rf2 {[%emt 0:01:49]} Rxa4 {[%emt 0:00:16]} 36. bxa4 {[%emt 0:01:05]} Rb1+ {[%emt 0:00:55]} 37. Qxb1 {[%emt 0:00:02]} Bxb1 {[%emt 0:00:09]} 38. Kxb1 {[%emt 0:00:02]} Qe4+ {[%emt 0:00:21]} 39. Kb2 {[%emt 0:00:34]} Qxc4 {[%emt 0:00:47]} 40. g3 {[%emt 0:00:57]} Qxa4 {[%emt 0:00:38]} 41. Rhh2 {[%emt 0:03:43]} Bf8 {[%emt 0:00:38]} 42. Rd2 {[%emt 0:01:49]} c4 {[%emt 0:00:20]} 43. Rc2 {[%emt 0:03:08]} Ba3+ {[%emt 0:01:03]} 44. Kb1 {[%emt 0:00:31]} a5 {[%emt 0:00:48]} 45. Bb2 {[%emt 0:02:05]} Qb5 {[%emt 0:00:12]} 46. Kc1 {[%emt 0:01:04]} Bc5 {[%emt 0:01:04]} 47. Kd1 {[%emt 0:01:20]} a4 {[%emt 0:00:54]} 48. Rhd2 {[%emt 0:01:08]} a3 {[%emt 0:00:20]} 49. Rd8+ {[%emt 0:00:47]} Kf7 {[%emt 0:00:08]} 50. Bc1 {[%emt 0:00:54]} Qa4 {[%emt 0:00:16]} 0-1